bitfinex/quotes_ETHUSD_20251111
["timestamp","ask_amount","ask_price","bid_price","bid_amount"]
[1762854582124,0.57839999,3569.2,3569.1,4.80182679]
[1762854582324,1.07639999,3569.2,3569.1,4.80182679]
[1762854582843,1.07639999,3569.2,3569.1,2.0]
[1762854583861,1.07639999,3569.2,3569.1,4.80182679]
[1762854584929,1.07639999,3569.2,3569.1,2.0]
[1762854585556,1.07639999,3569.2,3569.1,4.80182679]
[1762854585763,1.07639999,3569.2,3569.1,2.0]
[1762854586761,0.09799999,3569.2,3569.1,4.80182679]
[1762854587060,0.09799999,3569.2,3569.1,4.95632679]
[1762854587623,0.09799999,3569.2,3569.1,4.80182679]
[1762854589026,1.07639999,3569.2,3569.1,2.0]
[1762854589357,1.07639999,3569.2,3569.1,4.80182679]
[1762854589828,0.57839999,3569.2,3569.1,4.80182679]
[1762854591144,0.57839999,3569.2,3569.1,2.0]
[1762854591462,0.57839999,3569.2,3569.1,4.80182679]
[1762854592562,1.07639999,3569.2,3569.1,2.0]
[1762854592859,7.59151606,3569.2,3569.1,2.0]
[1762854593044,4.78976777,3569.2,3569.1,2.0]
[1762854593250,7.59151606,3569.2,3569.1,2.0]
[1762854593961,1.74239999,3569.2,3569.1,2.0]
[1762854594658,4.54414828,3569.2,3569.1,2.0]
[1762854596056,4.54414828,3569.2,3569.1,2.001]
[1762854597033,6.30346028,3569.2,3569.1,0.001]
[1762854598163,5.80386028,3569.2,3569.1,0.001]
[1762854598370,6.30346028,3569.2,3569.1,0.001]
[1762854598981,9.70984582,3569.2,3569.1,0.001]
[1762854600374,9.70904582,3569.2,3569.1,0.001]
[1762854600575,10.11454982,3569.2,3569.1,0.001]
[1762854601541,5.63666028,3569.2,3569.1,0.001]
[1762854601741,5.63666028,3569.2,3569.1,2.001]
[1762854601742,0.4808,3569.2,3569.1,2.001]
[1762854601993,1.6362,3569.2,3569.1,2.001]
[1762854602483,1.73299999,3569.2,3569.1,2.001]
[1762854602873,8.9468736,3569.2,3569.1,0.001]
[1762854603048,2.80182679,3569.1,3569.0,0.001]
[1762854603247,4.06177431,3568.8,3568.7,0.001]
[1762854603490,4.06177431,3568.8,3568.6,0.001]
[1762854603491,4.65825282,3568.7,3568.6,0.001]
[1762854603692,10.01557814,3568.7,3568.6,0.001]
[1762854603890,4.56153135,3568.6,3568.1,0.001]
[1762854604091,5.06407094,3568.3,3568.1,0.001]
[1762854604293,6.18687094,3568.3,3568.1,0.001]
[1762854604452,6.67627094,3568.3,3568.1,0.001]
[1762854606107,5.77116694,3568.3,3568.1,0.001]
[1762854606314,0.09679999,3568.3,3568.1,0.001]
[1762854606604,0.76579999,3568.3,3568.1,0.001]
[1762854606803,0.76579999,3568.3,3568.2,0.1605]
[1762854606804,0.09679999,3568.3,3568.2,0.1605]
[1762854607005,0.76579999,3568.3,3568.2,0.001]
[1762854608919,0.76579999,3568.3,3568.2,2.001]
[1762854609852,0.669,3568.3,3568.2,4.96303349]
[1762854610325,0.09679999,3568.3,3568.2,2.1605]
[1762854610624,2.80189532,3569.1,3568.4,2.80235483]
[1762854610924,2.80189532,3569.1,3568.5,2.80227414]
[1762854610925,0.668,3569.0,3568.5,2.80227414]
[1762854611086,0.0004,3569.2,3568.6,2.80217046]
[1762854611286,0.668,3568.9,3568.6,2.80217046]
[1762854611488,0.09679999,3568.5,3568.4,2.0]
[1762854612011,1.70999999,3568.5,3568.4,2.0]
[1762854612187,1.70999999,3568.5,3568.2,0.001]
[1762854612188,0.09679999,3568.3,3568.2,0.001]
[1762854612394,3.84445494,3568.3,3568.2,0.001]
[1762854612589,5.10416694,3568.3,3568.2,0.001]
[1762854613199,4.73016695,3568.3,3568.2,0.001]
[1762854613403,5.77216694,3568.3,3568.2,0.001]
[1762854613946,2.383512,3568.3,3568.2,0.001]
[1762854614143,2.48031199,3568.3,3568.2,0.001]
[1762854614441,2.383512,3568.3,3568.2,0.001]
[1762854614643,1.259712,3568.3,3568.2,0.001]
[1762854614810,1.927712,3568.3,3568.2,0.001]
[1762854615145,0.76479999,3568.3,3568.2,0.001]
[1762854616051,4.02305494,3568.3,3568.2,2.001]
[1762854616257,1.22059999,3568.3,3568.2,2.001]
[1762854616420,4.02305494,3568.3,3568.2,2.001]
[1762854616621,4.51245494,3568.3,3568.2,2.001]
[1762854616810,1.70999999,3568.3,3568.2,2.001]
[1762854617007,4.02305494,3568.3,3568.2,2.001]
[1762854617547,5.77216694,3568.3,3568.2,0.001]
[1762854617913,6.27176694,3568.3,3568.2,0.001]
[1762854619013,6.67727094,3568.3,3568.2,0.001]
[1762854619418,6.00927094,3568.3,3568.2,0.001]
[1762854619711,6.27176694,3568.3,3568.2,0.001]
[1762854620953,5.67536695,3568.3,3568.2,0.001]
[1762854621156,5.77216694,3568.3,3568.2,0.001]
[1762854621767,5.10416694,3568.3,3568.2,0.001]
[1762854621968,3.56725494,3568.3,3568.2,0.001]
[1762854622531,2.89925494,3568.3,3568.2,0.001]
[1762854622762,3.56725494,3568.3,3568.2,0.001]
[1762854622967,0.09679999,3568.3,3568.2,0.001]
[1762854623147,0.76379999,3568.3,3568.2,0.001]
[1762854623343,3.56625494,3568.3,3568.2,0.001]
[1762854623969,0.09679999,3568.3,3568.2,0.001]
[1762854624131,0.76379999,3568.3,3568.2,0.001]
[1762854624330,0.76299999,3568.3,3568.2,0.001]
[1762854625587,0.09599999,3568.3,3568.2,0.001]
[1762854625753,0.76299999,3568.3,3568.2,0.001]
[1762854626072,0.09599999,3568.3,3568.2,0.1605]
[1762854626257,1.24949999,3568.3,3568.2,0.001]
[1762854626440,4.51915494,3568.3,3568.2,0.001]
[1762854626635,6.27846694,3568.3,3568.2,0.001]
[1762854627574,6.68397094,3568.3,3568.2,0.001]
[1762854628071,6.79629121,3568.3,3568.2,0.001]
[1762854631176,6.79629121,3568.3,3567.1,0.01]
[1762854631177,5.06389938,3567.5,3567.1,0.01]
[1762854631339,6.68459938,3567.5,3567.1,0.01]
[1762854631544,6.27909538,3567.5,3567.1,0.01]
[1762854639699,3.30482311,3567.2,3567.1,0.01]
[1762854639939,6.21563511,3567.2,3567.1,0.01]
[1762854640083,6.68283511,3567.2,3567.1,0.01]
[1762854640864,7.52550688,3567.2,3567.1,0.01]
[1762854641408,2.9001052,3566.2,3566.1,0.01]
[1762854641715,3.5651052,3566.2,3566.1,0.01]
[1762854642066,4.8248172,3566.2,3566.1,0.01]
[1762854642709,2.02071199,3566.2,3566.1,0.2369]
[1762854643205,0.76099999,3566.2,3566.1,0.2369]
[1762854644094,3.5651052,3566.2,3566.1,0.01]
[1762854644494,4.0516052,3566.2,3566.1,0.01]
[1762854644719,5.0184052,3566.2,3566.1,0.01]
[1762854645130,6.2781172,3566.2,3566.1,0.01]
[1762854647420,6.2781172,3566.2,3566.1,0.2369]
[1762854647421,1.259712,3566.2,3566.1,0.2369]
[1762854647606,0.76099999,3566.2,3566.1,0.2369]
[1762854647807,0.09599999,3566.2,3566.1,0.2369]
[1762854648026,0.76099999,3566.2,3566.1,0.2369]
[1762854648235,0.09519999,3566.2,3566.1,0.2369]
[1762854648548,3.5643052,3566.2,3566.1,0.2369]
[1762854648701,3.5643052,3566.2,3566.1,0.01]
[1762854648702,6.2773172,3566.2,3566.1,0.01]
[1762854648901,4.8240172,3566.2,3566.1,0.01]
[1762854649506,6.2773172,3566.2,3566.1,0.011]
[1762854649822,4.8240172,3566.2,3566.1,0.011]
[1762854650021,5.3105172,3566.2,3566.1,0.011]
[1762854650400,5.7777172,3566.2,3566.1,0.011]
[1762854650636,1.35491199,3566.2,3566.1,0.011]
[1762854650838,4.8240172,3566.2,3566.1,0.011]
[1762854651136,5.7777172,3566.2,3566.1,0.011]
[1762854652340,6.2773172,3566.2,3566.1,0.011]
[1762854653548,4.8240172,3566.2,3566.1,0.011]
[1762854654110,5.3105172,3566.2,3566.1,0.011]
[1762854654522,6.2773172,3566.2,3566.1,0.011]
[1762854656242,6.6828212,3566.2,3566.1,0.011]
[1762854657906,4.6293172,3566.2,3566.1,0.011]
[1762854658106,3.5643052,3566.2,3566.1,0.011]
[1762854658354,4.8240172,3566.2,3566.1,0.011]
[1762854658942,4.8240172,3566.2,3566.1,0.1705]
[1762854659314,4.1590172,3566.2,3566.1,0.1705]
[1762854659668,4.8240172,3566.2,3566.1,0.1705]
[1762854660258,4.8240172,3566.2,3566.1,0.011]
[1762854660959,2.01991199,3566.2,3566.1,0.011]
[1762854661168,10.70987288,3566.2,3566.1,0.011]
[1762854661331,11.20947288,3566.2,3566.1,0.011]
[1762854662167,5.7939172,3566.2,3566.1,0.011]
[1762854662319,6.2886172,3566.2,3566.1,0.011]
[1762854662525,10.80396888,3566.2,3566.1,0.011]
[1762854662970,11.20947288,3566.2,3566.1,0.011]
[1762854663127,2.51951199,3566.2,3566.1,0.011]
[1762854663326,0.76019999,3566.2,3566.1,0.1705]
[1762854663534,0.09519999,3566.2,3566.1,0.1705]
[1762854664031,2.8039647,3566.4,3566.1,0.1705]
[1762854664234,1.259712,3566.4,3566.3,0.1595]
[1762854664548,4.15885994,3566.4,3566.3,0.1595]
[1762854664747,1.35491199,3566.4,3566.1,0.011]
[1762854665063,0.09519999,3566.2,3566.1,0.011]
[1762854665381,0.09519999,3566.2,3566.1,0.1705]
[1762854666467,5.1240172,3566.2,3566.1,0.011]
[1762854666679,5.6236172,3566.2,3566.1,0.011]
[1762854667927,5.6256172,3566.2,3566.1,0.011]
[1762854669592,5.1309172,3566.2,3566.1,0.011]
[1762854669789,4.06581721,3566.2,3566.1,0.011]
[1762854670396,2.9013052,3566.2,3566.1,0.1705]
[1762854670699,2.9013052,3566.2,3566.1,0.011]
[1762854671680,4.3659052,3566.2,3566.1,0.011]
[1762854672052,5.6256172,3566.2,3566.1,0.011]
[1762854672263,5.6248172,3566.2,3566.1,0.011]
[1762854674289,4.6305172,3566.2,3566.1,0.011]
[1762854674851,1.35611199,3566.2,3566.1,0.011]
[1762854675048,4.1602172,3566.2,3566.1,0.011]
[1762854675291,4.1602172,3566.2,3566.1,0.1705]
[1762854676164,1.260912,3566.2,3566.1,0.1705]
[1762854676369,4.1602172,3566.2,3566.1,0.011]
[1762854676569,4.06501721,3566.2,3566.1,0.1705]
[1762854676970,4.1602172,3566.2,3566.1,0.1705]
[1762854677906,4.1602172,3566.2,3566.1,0.011]
[1762854681674,4.6305172,3566.2,3566.1,0.011]
[1762854682624,1.260912,3566.2,3566.1,0.1705]
[1762854682775,0.09639999,3566.2,3566.1,0.1705]
[1762854683181,2.9005052,3566.2,3566.1,0.1705]
[1762854683413,2.9005052,3566.2,3566.1,0.011]
[1762854683719,3.8655052,3566.2,3566.1,0.011]
[1762854683897,10.14016888,3566.2,3566.1,0.011]
[1762854684513,10.54567288,3566.2,3566.1,0.011]
[1762854686895,10.65804995,3566.2,3566.1,0.011]
[1762854687538,10.65804995,3566.2,3566.1,1e-08]
[1762854690741,3.30512375,3565.8,3565.7,0.001]
[1762854690897,10.23778743,3565.8,3565.7,0.001]
[1762854691103,10.73178743,3565.8,3565.7,0.001]
[1762854691425,2.90087868,3564.2,3564.1,0.01]
[1762854692189,4.16059068,3564.2,3564.1,0.01]
[1762854692627,0.09519999,3564.2,3564.1,0.1705]
[1762854692845,0.09519999,3564.2,3564.1,0.331]
[1762854693428,2.805289,3564.7,3564.1,0.331]
[1762854693640,0.09519999,3564.2,3564.1,0.331]
[1762854693817,0.09519999,3564.2,3564.1,0.01]
[1762854694007,0.09519999,3564.2,3564.1,0.1705]
[1762854694415,0.09519999,3564.2,3564.1,0.331]
[1762854694830,0.09519999,3564.2,3564.1,3.13675741]
[1762854695040,0.09519999,3564.3,3564.2,2.80562972]
[1762854695352,0.09519999,3564.3,3564.2,2.96617869]
[1762854695647,0.09519999,3564.3,3564.2,3.12667869]
[1762854696210,0.09439999,3564.3,3564.2,3.12667869]
[1762854697165,1.259712,3565.6,3564.2,0.321]
[1762854697320,5.41485568,3566.1,3565.2,0.1605]
[1762854697321,2.80482729,3565.3,3565.2,0.1605]
[1762854697650,0.09439999,3565.3,3565.2,0.1605]
[1762854697846,2.89921304,3565.3,3565.2,0.1605]
[1762854698062,0.09439999,3565.3,3565.2,0.1605]
[1762854699253,2.89921304,3565.3,3565.2,0.1605]
[1762854701154,0.09439999,3565.3,3565.2,0.1605]
[1762854702867,2.89921304,3565.3,3565.2,0.1605]
[1762854704964,0.09639999,3565.3,3565.2,0.1605]
[1762854705945,2.90121304,3565.3,3565.2,0.1605]
[1762854706571,0.09639999,3565.3,3565.2,0.1605]
[1762854706768,2.90121304,3565.3,3565.2,0.1605]
[1762854707161,2.80489173,3565.2,3565.1,0.0931]
[1762854707369,2.90123358,3565.3,3565.2,0.1605]
[1762854707753,2.90123358,3565.3,3565.1,0.0931]
[1762854708186,4.15916107,3565.0,3564.9,2.0]
[1762854708384,5.61716107,3565.0,3564.9,2.0]
[1762854708881,4.06539069,3564.2,3563.8,0.0674]
[1762854709051,4.52979069,3564.2,3563.8,0.0674]
[1762854709254,0.09439999,3564.3,3564.1,0.1715]
[1762854709453,2.90000585,3564.3,3564.2,0.1605]
[1762854709661,0.6876,3564.9,3564.2,0.1605]
[1762854709886,0.09439999,3564.5,3564.4,0.1605]
[1762854710772,0.09439999,3564.5,3564.4,0.321]
[1762854711498,0.09439999,3564.5,3564.1,0.011]
[1762854711499,0.09439999,3564.2,3564.1,0.011]
[1762854711949,2.90007868,3564.2,3564.1,0.011]
[1762854713395,2.90007868,3564.2,3564.1,0.1715]
[1762854713396,0.09439999,3564.2,3564.1,0.1715]
[1762854714183,0.09439999,3564.2,3564.1,0.011]
[1762854714392,0.09439999,3564.2,3564.1,0.1715]
[1762854716301,0.09439999,3564.2,3564.1,0.011]
[1762854716676,0.09439999,3564.2,3564.1,0.1715]
[1762854717976,0.09439999,3564.2,3564.1,0.011]
[1762854718197,0.09439999,3564.2,3564.1,0.1715]
[1762854718400,0.09439999,3564.2,3564.1,0.011]
[1762854718611,0.09439999,3564.2,3564.1,2.011]
[1762854719318,0.09439999,3564.2,3564.1,2.1715]
[1762854719893,0.09439999,3564.2,3564.1,2.011]
[1762854720106,0.09439999,3564.2,3564.1,2.1715]
[1762854720312,0.09359999,3564.2,3564.1,2.1715]
[1762854720922,0.09359999,3564.2,3564.1,2.332]
[1762854721119,0.09359999,3564.2,3564.1,2.011]
[1762854722225,0.09359999,3564.2,3564.1,2.1715]
[1762854723040,0.58929999,3564.2,3564.1,2.011]
[1762854723245,3.86797868,3564.2,3564.1,2.011]
[1762854723449,3.39497868,3564.2,3564.1,2.011]
[1762854723809,0.09359999,3564.2,3564.1,2.1715]
[1762854724642,0.09359999,3564.2,3564.1,2.011]
[1762854724847,0.09359999,3564.2,3564.1,2.1715]
[1762854725613,0.84301749,3565.1,3564.1,5.13775741]
[1762854725808,0.09359999,3564.4,3564.2,2.0]
[1762854726033,3.30129997,3564.3,3564.2,2.0]
[1762854726344,4.65859068,3564.2,3564.1,0.011]
[1762854726515,5.62729068,3564.2,3564.1,0.011]
[1762854726924,6.03279468,3564.2,3564.1,1e-08]
[1762854727248,6.14523619,3564.2,3564.1,1e-08]
[1762854731654,5.5786362,3564.2,3564.1,1e-08]
[1762854731839,4.56109069,3564.2,3564.1,1e-08]
[1762854732041,0.09359999,3564.2,3564.1,1e-08]
[1762854732244,3.30137869,3564.2,3564.1,1e-08]
[1762854732421,3.86797868,3564.2,3564.1,1e-08]
[1762854732620,4.36757868,3564.2,3564.1,1e-08]
[1762854733929,0.09359999,3564.2,3564.1,1e-08]
[1762854734462,2.89927868,3564.2,3564.1,1e-08]
[1762854734757,2.89927868,3564.2,3564.1,0.16050001]
[1762854734956,4.15899068,3564.2,3564.1,0.16050001]
[1762854735116,1.35331199,3564.2,3564.1,0.16050001]
[1762854735320,1.259712,3564.2,3564.1,0.16050001]
[1762854735546,0.09359999,3564.2,3564.1,0.16050001]
[1762854737238,0.09359999,3564.2,3564.1,0.32100001]
[1762854737440,0.09359999,3564.2,3564.1,3.12675742]
[1762854737642,0.09359999,3564.2,3564.1,0.16050001]
[1762854737858,0.09359999,3564.2,3564.1,2.96625742]
[1762854738262,0.09359999,3564.2,3564.1,3.12675742]
[1762854738468,1.259712,3564.7,3564.1,3.12675742]
[1762854738767,1.259712,3564.9,3564.1,3.12675742]
[1762854738962,1.259712,3564.7,3564.1,2.96622761]
[1762854739132,0.09359999,3564.2,3564.1,3.12672761]
[1762854739534,0.002,3564.2,3564.1,3.12672761]
[1762854739730,0.002,3564.2,3564.1,3.15478518]
[1762854739936,0.002,3564.2,3564.1,3.12672761]
[1762854740892,0.09559999,3564.2,3564.1,3.12672761]
[1762854741433,0.09559999,3564.2,3564.1,2.96622761]
[1762854741662,0.09559999,3564.2,3564.1,0.16050001]
[1762854742383,0.09559999,3564.2,3564.1,0.87712501]
[1762854742735,0.59129999,3564.2,3564.1,0.87712501]
[1762854743185,0.09559999,3564.2,3564.1,0.87712501]
[1762854743990,3.39697868,3564.2,3564.1,0.87712501]
[1762854744277,5.62849068,3564.2,3564.1,0.87712501]
[1762854746064,4.54719069,3564.2,3564.1,0.87712501]
[1762854746269,1.35451199,3564.2,3564.1,0.87712501]
[1762854746456,4.16019068,3564.2,3564.1,0.87712501]
[1762854746770,3.38107868,3564.2,3564.1,0.87712501]
[1762854746959,5.62439068,3564.2,3564.1,0.87712501]
[1762854748169,6.02989468,3564.2,3564.1,0.87712501]
[1762854750744,5.62439068,3564.2,3564.1,0.87712501]
[1762854750952,5.12479068,3564.2,3564.1,0.87712501]
[1762854751270,5.62439068,3564.2,3564.1,0.87712501]
[1762854752958,1.35451199,3564.2,3564.1,0.87712501]
[1762854753156,4.64079068,3564.2,3564.1,0.87712501]
[1762854753654,0.0012,3564.2,3564.1,0.87712501]
[1762854753858,3.38107868,3564.2,3564.1,0.87712501]
[1762854754074,3.86507868,3564.2,3564.1,0.87712501]
[1762854755058,3.38107868,3564.2,3564.1,0.87712501]
[1762854755282,5.12479068,3564.2,3564.1,0.87712501]
[1762854755597,5.62439068,3564.2,3564.1,0.87712501]
[1762854757656,5.14039068,3564.2,3564.1,0.87712501]
[1762854758085,5.62439068,3564.2,3564.1,0.87712501]
[1762854758288,5.62439068,3564.2,3564.1,0.87812501]
[1762854758591,5.80439068,3564.2,3564.1,0.87812501]
[1762854759290,5.14039068,3564.2,3564.1,0.87812501]
[1762854759493,2.90047868,3564.2,3564.1,0.87812501]
[1762854759691,3.56447868,3564.2,3564.1,0.87812501]
[1762854759895,4.04507868,3564.2,3564.1,0.87812501]
[1762854760274,5.80439068,3564.2,3564.1,0.87812501]
[1762854760676,4.82419068,3564.2,3564.1,0.87812501]
[1762854761071,4.06407868,3564.2,3564.1,0.87812501]
[1762854761284,0.75879999,3564.2,3564.1,0.87812501]
[1762854761567,3.56447868,3564.2,3564.1,0.87812501]
[1762854761992,4.82419068,3564.2,3564.1,0.87812501]
[1762854762294,3.56447868,3564.2,3564.1,0.87812501]
[1762854763466,0.75879999,3564.2,3564.1,0.87812501]
[1762854763801,3.56447868,3564.2,3564.1,0.87812501]
[1762854764000,0.75879999,3564.2,3564.1,0.87812501]
[1762854764393,3.56447868,3564.2,3564.1,0.87812501]
[1762854765413,5.30479068,3564.2,3564.1,0.87812501]
[1762854765570,6.28839068,3564.2,3564.1,0.87812501]
[1762854765766,3.48271199,3564.2,3564.1,0.87812501]
[1762854766074,3.56447868,3564.2,3564.1,0.87812501]
[1762854767067,4.82419068,3564.2,3564.1,0.87812501]
[1762854767497,2.49911199,3564.2,3564.1,0.87812501]
[1762854767684,2.01851199,3564.2,3564.1,0.87812501]
[1762854767899,5.78879068,3564.2,3564.1,0.87812501]
[1762854768413,5.30399068,3564.2,3564.1,0.87812501]
[1762854768615,6.28759068,3564.2,3564.1,0.87812501]
[1762854777910,6.69309468,3564.2,3564.1,0.87812501]
[1762854778403,3.2114976,3563.8,3563.7,0.001]
[1762854778654,9.79697307,3563.8,3563.7,0.001]
[1762854778836,10.29517307,3563.8,3563.7,0.001]
[1762854779205,9.63217307,3563.8,3563.7,0.001]
[1762854779532,10.29517307,3563.8,3563.7,0.001]
[1762854782026,2.90078706,3562.3,3562.1,0.01]
[1762854782209,3.47025394,3562.2,3562.1,0.01]
[1762854782911,7.19949384,3562.2,3562.1,0.01]
[1762854783119,4.3922399,3562.2,3562.1,0.01]
[1762854783317,7.19949384,3562.2,3562.1,0.01]
[1762854783745,4.3922399,3562.2,3562.1,0.01]
[1762854783946,0.663,3562.2,3562.1,0.01]
[1762854784919,0.09359999,3562.3,3562.1,0.01]
[1762854785119,0.663,3562.2,3562.1,0.01]
[1762854785935,7.19949384,3562.2,3562.1,0.01]
[1762854787219,4.3922399,3562.2,3562.1,0.01]
[1762854787655,0.663,3562.2,3562.1,0.01]
[1762854787842,0.75659999,3562.2,3562.1,0.01]
[1762854788558,0.09359999,3562.2,3562.1,2.81733275]
[1762854788854,0.75659999,3562.2,3562.1,0.01]
[1762854789466,3.56385393,3562.2,3562.1,0.01]
[1762854790899,0.75659999,3562.2,3562.1,0.01]
[1762854791394,3.56385393,3562.2,3562.1,0.01]
[1762854791969,4.03495393,3562.2,3562.1,0.01]
[1762854792164,4.03415393,3562.2,3562.1,0.01]
[1762854792366,8.26159383,3562.2,3562.1,0.01]
[1762854792569,10.02090583,3562.2,3562.1,0.01]
[1762854793793,2.80804223,3561.2,3561.1,0.01]
[1762854793994,10.00709813,3561.2,3561.1,0.01]
[1762854794295,10.50529813,3561.2,3561.1,0.01]
[1762854794694,5.20935423,3561.2,3561.1,0.01]
[1762854794868,2.893412,3561.2,3561.1,0.01]
[1762854795066,5.79425422,3561.2,3561.1,0.01]
[1762854795283,3.48441199,3561.2,3561.1,0.01]
[1762854795483,6.19965423,3561.2,3561.1,0.01]
[1762854795680,1.759312,3561.2,3561.1,0.01]
[1762854795891,2.422312,3561.2,3561.1,0.01]
[1762854796263,2.422312,3561.2,3557.3,1.50900772]
[1762854796264,0.1836,3559.4,3557.3,1.50900772]
[1762854796596,0.09279999,3557.4,3557.3,0.4826]
[1762854796800,0.09279999,3557.5,3557.4,3.21475172]
[1762854797094,2.125312,3558.9,3557.4,4.45681397]
[1762854797281,0.09279999,3558.0,3557.5,0.4826]
[1762854797481,0.4996,3558.6,3557.6,0.02810883]
[1762854797670,0.09279999,3558.2,3557.7,0.02810804]
[1762854797873,0.09279999,3557.7,3557.4,0.1733]
[1762854798070,2.81089211,3557.6,3557.1,0.01]
[1762854798273,0.09279999,3557.2,3557.1,0.01]
[1762854798471,0.59239999,3557.2,3557.1,0.01]
[1762854799202,5.13441181,3557.2,3557.1,0.01]
[1762854799562,5.53991581,3557.2,3557.1,0.01]
[1762854799767,6.03811581,3557.2,3557.1,0.01]
[1762854800159,5.53851581,3557.2,3557.1,0.01]
[1762854800389,6.03811581,3557.2,3557.1,0.01]
[1762854800563,5.53991581,3557.2,3557.1,0.01]
[1762854800993,1.56169999,3557.2,3557.1,0.01]
[1762854801194,0.59239999,3557.2,3557.1,0.01]
[1762854801496,3.40359981,3557.2,3557.1,0.01]
[1762854801806,0.59239999,3557.2,3557.1,0.01]
[1762854802095,0.4996,3557.3,3557.1,0.6425]
[1762854802296,0.09279999,3557.2,3557.1,0.6425]
[1762854802464,0.09279999,3557.2,3557.1,0.1833]
[1762854802665,0.09279999,3557.2,3557.1,1.1251]
[1762854802991,0.09279999,3557.2,3557.1,3.93637885]
[1762854803492,1.941712,3557.9,3557.2,2.81116454]
[1762854803699,1.759312,3557.9,3557.2,2.81116454]
[1762854803996,0.4996,3558.1,3557.8,0.4592]
[1762854804203,4.52805878,3558.8,3557.7,2.81073853]
[1762854804397,0.4996,3558.5,3558.0,0.4592]
[1762854804597,0.09279999,3558.2,3558.1,0.1733]
[1762854804890,0.4996,3558.5,3558.1,0.1733]
[1762854805097,0.09279999,3558.2,3558.1,0.1733]
[1762854805507,0.09279999,3558.2,3558.1,0.6325]
[1762854806487,0.09279999,3558.2,3557.1,0.1833]
[1762854806683,0.09279999,3558.0,3557.4,2.81100249]
[1762854806882,0.09279999,3558.0,3557.5,2.81095327]
[1762854807079,0.09279999,3558.0,3557.6,2.81087365]
[1762854807279,0.09279999,3558.0,3557.4,0.4955]
[1762854807476,0.09279999,3557.7,3557.4,2.81103533]
[1762854807674,0.09279999,3557.7,3557.4,0.681]
[1762854807909,0.09279999,3557.7,3557.6,0.4829]
[1762854808614,0.09279999,3557.7,3557.1,0.1833]
[1762854808615,0.59239999,3557.7,3557.1,0.1833]
[1762854808791,4.52805878,3558.4,3557.1,0.1833]
[1762854808792,0.09279999,3557.5,3557.3,2.81105549]
[1762854808982,0.09279999,3557.5,3557.2,0.681]
[1762854809180,0.09279999,3557.5,3557.4,0.4829]
[1762854809687,0.09279999,3557.5,3557.4,3.78944177]
[1762854809915,0.09279999,3557.6,3557.4,0.9784]
[1762854810233,0.09279999,3557.6,3557.5,2.81096275]
[1762854810435,0.09279999,3557.6,3557.5,0.4829]
[1762854810725,0.09279999,3557.6,3557.5,3.29386275]
[1762854811584,0.09279999,3557.6,3557.5,0.4829]
[1762854812110,0.09279999,3557.6,3557.5,3.29386275]
[1762854814419,0.09279999,3557.6,3557.5,3.78936275]
[1762854814606,0.09279999,3557.8,3557.5,4.46836275]
[1762854814814,0.09279999,3557.6,3557.5,4.46836275]
[1762854815014,0.09279999,3557.6,3557.5,3.98546275]
[1762854815209,0.09279999,3557.6,3557.5,4.46836275]
[1762854815416,4.52805878,3558.4,3557.5,4.46836275]
[1762854815417,0.09279999,3557.8,3557.7,2.81076636]
[1762854815722,0.09279999,3557.8,3557.6,3.48985934]
[1762854815920,0.09279999,3557.8,3557.6,0.679]
[1762854816324,0.09279999,3557.8,3557.6,3.48986225]
[1762854816492,0.09199999,3557.8,3557.7,0.4829]
[1762854819230,0.09199999,3558.0,3557.8,2.81071239]
[1762854819518,0.09199999,3558.0,3557.9,0.4829]
[1762854819892,0.09199999,3558.3,3557.9,3.29354672]
[1762854820091,0.4801,3558.0,3557.1,0.011]
[1762854820293,5.79405877,3557.2,3557.1,0.011]
[1762854820532,9.24325859,3557.2,3557.1,0.011]
[1762854820736,9.70345859,3557.2,3557.1,0.011]
[1762854821946,2.36419999,3557.2,3557.1,0.011]
[1762854822352,1.70839999,3557.2,3557.1,0.011]
[1762854822554,0.09199999,3557.2,3557.1,0.011]
[1762854822752,0.09199999,3557.2,3557.1,2.82227885]
[1762854822939,0.09199999,3557.5,3557.1,1.1627]
[1762854823251,0.09199999,3557.5,3557.2,0.1733]
[1762854823554,0.09199999,3557.5,3557.4,0.4829]
[1762854823909,0.09199999,3557.5,3557.4,3.29394177]
[1762854824938,0.09199999,3557.6,3557.4,0.4829]
[1762854825109,0.09199999,3557.6,3557.5,2.81096275]
[1762854825307,0.09199999,3557.6,3557.5,3.29386275]
[1762854825554,4.52805878,3558.2,3557.6,2.81085421]
[1762854825755,4.52805878,3558.2,3557.5,1.6654]
[1762854825936,0.09199999,3557.9,3557.6,0.687]
[1762854826140,5.02765878,3558.3,3557.7,2.81079553]
[1762854826339,0.59159999,3558.3,3557.6,0.687]
[1762854826551,0.09199999,3558.1,3557.7,0.4955]
[1762854826918,0.09199999,3558.1,3557.8,3.49770978]
[1762854827114,0.09199999,3558.1,3557.9,2.81061868]
[1762854827312,0.09199999,3558.1,3557.9,2.81058032]
[1762854827516,0.09199999,3558.1,3557.8,0.687]
[1762854827762,0.09199999,3558.1,3558.0,3.2934028]
[1762854827929,0.09199999,3558.1,3558.0,0.4829]
[1762854828149,0.09199999,3558.1,3558.0,3.98046438]
[1762854828339,0.09199999,3558.1,3558.0,1.1699]
[1762854828539,0.09199999,3558.1,3558.0,3.98046773]
[1762854828762,4.14072952,3558.9,3558.0,0.4829]
[1762854828763,0.09199999,3558.4,3558.0,0.4829]
[1762854828985,0.4602,3559.1,3558.0,0.4829]
[1762854828986,3.26991592,3559.1,3558.2,2.81033591]
[1762854829154,3.26991592,3559.1,3558.1,0.8593]
[1762854829155,4.52805878,3559.3,3558.3,0.4829]
[1762854829343,4.52805878,3559.3,3558.6,2.81002662]
[1762854829542,0.4996,3559.2,3558.6,2.81006332]
[1762854829758,0.1836,3559.4,3558.7,0.686]
[1762854829959,0.4602,3559.5,3558.7,0.686]
[1762854829960,0.09199999,3559.5,3558.7,0.686]
[1762854830192,0.686,3559.8,3559.1,2.80967731]
[1762854830489,0.09199999,3559.8,3559.2,0.8593]
[1762854830687,0.01,3559.9,3559.6,2.80929548]